bitfinex-derivatives/quotes_ETHF0:USTF0_20250130
["timestamp","ask_amount","ask_price","bid_price","bid_amount"]
[1738236309134,0.61991,3226.8,3226.7,0.61991]
[1738236309836,0.61992,3226.7,3226.6,2.69591619]
[1738236311041,0.61992,3226.7,3226.6,3.31585619]
[1738236311438,1.54958,3227.2,3226.6,2.69591619]
[1738236311734,0.61992,3226.7,3226.6,2.69591619]
[1738236311938,0.61997,3226.4,3226.3,3.22431619]
[1738236312333,0.61997,3226.4,3226.3,3.84430619]
[1738236312633,0.61997,3226.4,3226.3,3.22431619]
[1738236313034,0.61997,3226.4,3226.3,3.84430619]
[1738236313539,3.2078,3227.4,3226.3,3.22431619]
[1738236313745,0.61978,3227.4,3227.3,2.69591619]
[1738236314042,4.76171647,3227.8,3227.3,2.69591619]
[1738236314043,3.21244647,3227.8,3227.3,2.69591619]
[1738236314235,0.61977,3227.5,3227.4,0.61978]
[1738236314432,0.61974,3227.6,3227.4,0.61977]
[1738236314642,0.61974,3227.6,3227.3,3.71911619]
[1738236314834,3.1,3227.7,3227.3,3.71911619]
[1738236315032,0.61977,3227.5,3227.3,4.33889619]
[1738236315237,0.61977,3227.5,3227.3,3.71911619]
[1738236315441,0.61977,3227.5,3227.4,0.61978]
[1738236315942,0.6198,3227.3,3227.2,3.2078]
[1738236316534,0.61992,3226.7,3226.6,1.61453]
[1738236316735,3.2078,3226.7,3226.2,0.00310885]
[1738236317041,0.61999,3226.3,3226.2,0.00310885]
[1738236317241,3.71999,3226.3,3226.2,0.00310885]
[1738236317853,3.71999,3226.3,3226.2,0.62311885]
[1738236318042,3.71999,3226.3,3226.2,0.00310885]
[1738236318952,3.1,3226.3,3226.2,0.00310885]
[1738236319150,3.1,3226.3,3226.2,0.62311885]
[1738236319953,0.61999,3226.3,3226.2,0.00310885]
[1738236320348,3.1,3226.6,3226.2,0.00310885]
[1738236320547,0.61998,3226.4,3226.3,0.61999]
[1738236320744,0.61999,3226.3,3226.2,0.00310885]
[1738236325257,3.1,3226.6,3226.2,0.00310885]
[1738236325756,0.61999,3226.3,3226.2,0.00310885]
[1738236327953,3.1,3226.6,3226.2,0.00310885]
[1738236328153,0.61999,3226.3,3226.2,0.62310885]
[1738236329051,3.82779,3226.3,3226.2,0.00310885]
[1738236329359,0.62007,3225.9,3225.8,4.31059619]
[1738236331058,0.62005,3226.1,3226.0,0.62005]
[1738236331455,0.62005,3226.0,3225.9,0.62006]
[1738236332456,0.00464647,3226.2,3225.9,3.2078]
[1738236332657,0.62005,3226.0,3225.9,3.2078]
[1738236334055,0.62005,3226.0,3225.9,3.82787]
[1738236335664,0.62005,3226.0,3225.9,3.2078]
[1738236338061,0.62005,3226.0,3225.7,0.78428862]
[1738236338062,0.5257,3226.1,3225.7,0.78428862]
[1738236338363,0.62011,3225.7,3225.6,0.62013]
[1738236340364,0.62013,3225.6,3225.5,3.31604619]
[1738236344767,0.62011,3225.8,3225.7,0.62008]
[1738236346369,0.62011,3225.8,3225.7,0.40057892]
[1738236347468,1.16287,3226.0,3225.9,0.62007]
[1738236347662,0.5257,3226.1,3225.6,1.55031]
[1738236347862,0.5257,3226.1,3225.5,3.19761619]
[1738236348164,0.5257,3226.1,3225.4,4.75821]
[1738236348165,1.55013,3226.0,3225.4,3.2078]
[1738236348366,0.62015,3225.5,3225.4,3.82796]
[1738236349771,1.55022,3225.9,3225.4,3.2078]
[1738236349977,0.62013,3225.7,3225.6,0.62012]
[1738236350281,0.62014,3225.6,3225.5,0.62014]
[1738236350973,1.55013,3226.0,3225.4,3.2078]
[1738236351180,0.62008,3225.9,3225.8,0.62008]
[1738236351579,0.62007,3226.0,3225.9,0.62006]
[1738236351970,0.54404647,3226.2,3225.6,1.55031]
[1738236352278,1.16406647,3226.2,3226.1,0.62003]
[1738236352476,0.00464647,3226.2,3226.1,0.62003]
[1738236352678,0.00464647,3226.2,3226.1,3.31594619]
[1738236353382,0.62465647,3226.2,3226.1,0.62003]
[1738236353580,0.00464647,3226.2,3226.1,0.62003]
[1738236353776,0.00464647,3226.2,3225.9,0.5109]
[1738236353978,0.62006,3226.0,3225.9,0.62006]
[1738236354279,0.00464647,3226.2,3225.5,3.23411619]
[1738236354470,0.6201,3225.8,3225.6,0.62013]
[1738236355075,0.62008,3225.9,3225.8,0.62009]
[1738236355278,0.62005,3226.0,3225.7,0.6201]
[1738236355492,0.62009,3225.8,3225.7,0.6201]
[1738236357199,0.62014,3225.6,3225.5,0.62014]
[1738236357893,0.62014,3225.6,3225.5,0.40411897]
[1738236358498,0.62014,3225.6,3225.4,3.2078]
[1738236358499,1.55013,3226.0,3225.4,3.2078]
[1738236358701,0.62015,3225.5,3225.4,3.2078]
[1738236358900,0.62022,3225.2,3225.1,0.62021]
[1738236361596,0.62019,3225.3,3225.2,0.62019]
[1738236361795,0.62019,3225.3,3225.2,3.31610619]
[1738236362200,0.62019,3225.3,3225.2,2.69591619]
[1738236362603,0.62019,3225.3,3225.2,3.31611619]
[1738236364896,0.62021,3225.2,3225.1,0.62021]
[1738236365600,0.6202,3225.3,3225.2,0.62019]
[1738236373815,0.5059,3225.4,3224.9,5.90371619]
[1738236374005,0.62023,3225.2,3225.1,0.62021]
[1738236374406,0.5059,3225.4,3225.2,1.37977]
[1738236374607,0.62019,3225.3,3225.2,1.99997]
[1738236379723,0.5059,3225.4,3225.2,1.37977]
[1738236380018,0.5059,3225.4,3225.3,0.62019]
[1738236380219,3.1,3225.6,3225.5,0.62015]
[1738236380918,3.72013,3225.6,3225.5,0.62015]
[1738236382910,3.1,3225.6,3225.3,1.031]
[1738236383110,0.62019,3225.4,3225.3,0.62018]
[1738236383313,0.62019,3225.3,3225.2,1.99997]
[1738236384821,0.62018,3225.4,3225.3,0.62018]
[1738236386417,0.62019,3225.3,3225.2,1.99996]
[1738236392022,4.65035,3225.6,3225.2,1.37977]
[1738236392223,0.62018,3225.4,3225.3,0.62017]
[1738236392424,0.62018,3225.4,3225.3,0.41098158]
[1738236395122,3.72013,3225.6,3225.5,0.62015]
[1738236395326,3.1,3225.6,3225.5,0.62015]
[1738236396324,3.72013,3225.6,3225.5,0.62015]
[1738236396529,3.1,3225.6,3225.2,4.07568619]
[1738236396923,0.62019,3225.3,3225.2,1.99997]
[1738236397427,0.62019,3225.3,3225.2,1.37977]
[1738236397927,0.62019,3225.3,3225.2,1.99997]
[1738236398723,0.62019,3225.3,3225.2,1.37977]
[1738236400529,0.62019,3225.3,3225.2,0.92180629]
[1738236405627,3.82799,3225.3,3225.2,0.92180629]
[1738236405930,0.62032,3224.6,3224.5,3.2078]
[1738236406132,1.55063,3225.0,3224.3,2.69591619]
[1738236406333,1.55079,3224.7,3224.1,1.13292]
[1738236406519,0.62038,3224.3,3224.1,1.13292]
[1738236406927,0.62038,3224.4,3224.2,0.62039]
[1738236407128,0.00464647,3224.5,3224.2,0.62039]
[1738236407324,0.00464647,3224.5,3224.1,0.5125]
[1738236407325,0.62038,3224.3,3224.1,0.5125]
[1738236407630,0.62038,3224.3,3224.1,1.1329]
[1738236407821,0.00464647,3224.5,3224.1,0.5125]
[1738236408027,0.00464647,3224.5,3224.3,2.69591619]
[1738236408227,0.62036,3224.4,3224.3,3.31627619]
[1738236409333,0.62036,3224.4,3224.3,2.69591619]
[1738236410428,0.6204,3224.2,3224.1,0.5125]
[1738236411236,0.62042,3224.1,3224.0,6.91121619]
[1738236411432,0.62042,3224.1,3224.0,7.53164619]
[1738236412033,0.62042,3224.1,3224.0,6.39371619]
[1738236412735,0.62042,3224.1,3224.0,5.90371619]
[1738236413533,0.62042,3224.1,3224.0,3.2078]
[1738236414940,0.62042,3224.1,3223.7,4.34080619]
[1738236414941,4.65095,3224.3,3223.7,4.34080619]
[1738236415229,0.62047,3223.8,3223.7,4.34080619]
[1738236422640,0.62047,3223.8,3223.7,1.64489]
[1738236423338,1.0164,3224.0,3223.5,0.534]
[1738236423642,0.62057,3223.3,3223.2,1.13578]
[1738236424041,0.62057,3223.3,3223.2,0.5152]
[1738236424942,0.62057,3223.3,3223.2,1.13579]
[1738236425338,0.62057,3223.3,3223.1,3.49997722]
[1738236425339,0.62059,3223.2,3223.1,0.80406103]
[1738236425741,0.5089,3223.4,3222.9,3.2078]
[1738236425941,0.62063,3223.0,3222.9,3.2078]
[1738236426341,3.72063,3223.0,3222.9,3.2078]
[1738236427850,3.1,3223.0,3222.9,3.82845]
[1738236428047,0.62058,3223.4,3223.3,0.62055]
[1738236428844,0.5156,3223.5,3223.1,3.23551619]
[1738236429050,6.3078,3223.7,3223.1,3.23551619]
[1738236429051,3.2078,3223.7,3223.4,2.69591619]
[1738236429253,0.62047,3223.9,3223.8,0.62046]
[1738236431544,0.62044,3224.0,3223.9,0.62044]
[1738236434966,3.1,3224.1,3223.6,3.2078]
[1738236435272,0.62055,3223.4,3223.3,0.62056]
[1738236435571,1.55123,3223.8,3223.1,3.74311619]
[1738236435777,0.62059,3223.2,3223.1,4.36372619]
[1738236441877,0.62059,3223.2,3223.1,3.74311619]
[1738236442973,0.62059,3223.2,3223.1,4.36372619]
[1738236444279,0.5224,3223.4,3223.0,3.21046608]
[1738236444470,3.82841,3223.1,3223.0,0.00266608]
[1738236444872,6.92841,3223.1,3223.0,0.00266608]
[1738236445674,9.62432619,3223.1,3223.0,0.00181131]
[1738236445874,0.62074,3222.4,3222.3,3.2078]
[1738236446374,4.24767619,3222.7,3221.9,2.69591619]
[1738236446375,0.62082,3222.0,3221.9,2.69591619]
[1738236446581,4.65195,3222.3,3221.7,3.7029]
[1738236446770,0.62086,3221.8,3221.7,4.32377]
[1738236447079,1.55204,3222.1,3221.3,5.90371619]
[1738236447380,0.62093,3221.5,3221.4,0.62091]
[1738236448581,0.62091,3221.6,3221.5,0.6209]
[1738236452081,0.4946,3221.8,3221.3,5.90371619]
[1738236452376,0.62085,3222.0,3221.9,0.62083]
[1738236453178,0.521,3222.2,3221.7,3.2078]
[1738236453379,3.21245376,3222.7,3221.9,2.69591619]
[1738236453584,3.21245376,3222.7,3222.1,4.75981]
[1738236453778,0.62075,3222.5,3222.4,0.62073]
[1738236454778,0.5085,3222.6,3222.1,3.2078]
[1738236455081,0.62074,3222.4,3222.3,0.62075]
[1738236456083,1.0469,3222.6,3222.1,3.2078]
[1738236456383,0.62075,3222.4,3222.3,0.62075]
[1738236458686,1.66761,3222.6,3222.5,0.62072]
[1738236458875,0.62073,3222.5,3222.4,0.62074]
[1738236459385,3.1,3222.5,3222.4,0.62073]
[1738236459583,3.72072,3222.5,3222.4,0.62073]
[1738236460885,0.62075,3222.4,3222.3,0.62075]
[1738236461087,3.72074,3222.5,3222.4,0.62074]
[1738236462888,3.1,3222.5,3222.4,0.62074]
[1738236463084,3.72072,3222.5,3222.1,3.2078]
[1738236463291,0.62075,3222.4,3222.3,0.62075]
[1738236463803,3.72073,3222.5,3222.4,0.62074]
[1738236466792,0.62073,3222.5,3222.4,0.62074]
[1738236467900,0.62076,3222.4,3222.3,0.62075]
[1738236470997,0.62534376,3222.7,3222.6,0.6207]
[1738236471196,0.00465376,3222.7,3222.6,0.6207]
[1738236471698,0.00465376,3222.7,3222.6,1.1274]
[1738236475492,0.00465376,3222.7,3222.1,3.2078]
[1738236475698,0.62078,3222.3,3222.2,0.62076]
[1738236478300,0.62078,3222.2,3222.1,3.82858]
[1738236478689,0.62077,3222.4,3222.3,0.62074]
[1738236478890,0.62077,3222.4,3222.3,3.31665619]
[1738236481099,0.62077,3222.4,3222.3,0.62074]
[1738236484804,1.11014,3222.5,3222.4,0.62074]
[1738236498112,0.4894,3222.5,3222.2,3.2078]
[1738236498312,0.62076,3222.3,3222.2,3.82856]
[1738236501015,0.62076,3222.3,3222.2,3.2078]
[1738236502619,0.62076,3222.4,3222.3,0.62074]
[1738236505222,0.62076,3222.4,3222.3,0.42169594]
[1738236510118,0.4894,3222.5,3222.0,5.90371619]
[1738236510318,0.62077,3222.4,3222.3,0.62074]
[1738236510521,0.62077,3222.4,3222.3,1.89286359]
[1738236511219,0.62077,3222.4,3222.3,0.62074]
[1738236512121,0.62077,3222.4,3222.3,1.89286359]
[1738236512924,0.4894,3222.5,3222.4,0.62074]
[1738236513317,0.4894,3222.5,3222.4,1.0284]
[1738236513827,1.12242,3222.6,3222.4,1.0284]
[1738236514027,1.12242,3222.6,3222.5,0.62072]
[1738236514531,0.62072,3222.5,3222.4,1.64912]
[1738236520526,0.62072,3222.5,3222.4,1.0284]
[1738236521026,0.62072,3222.5,3222.4,1.64914]
[1738236523430,0.62072,3222.5,3222.2,3.2078]
[1738236523633,0.62072,3222.5,3222.4,0.62074]
[1738236523931,0.62072,3222.5,3222.4,0.4749851]
[1738236524526,0.5017,3222.6,3222.2,3.2078]
[1738236524731,0.62076,3222.4,3222.3,0.62075]
[1738236525530,0.62076,3222.3,3222.2,3.82857]
[1738236530824,0.62084,3221.9,3221.8,3.2078]
[1738236531438,0.62088,3221.7,3221.6,0.62089]
[1738236533739,0.62088,3221.8,3221.7,0.62085]
[1738236533936,0.62088,3221.8,3221.7,1.89297359]
[1738236539741,0.62086,3222.0,3221.9,0.62082]
[1738236547953,4.23171,3222.1,3222.0,0.62082]
[1738236554952,3.1,3222.1,3222.0,0.62082]
[1738236555158,1.15687,3222.4,3222.3,0.62076]
[1738236555555,4.25687,3222.4,3222.3,0.62076]
[1738236556460,3.6361,3222.4,3222.1,1.27212359]
[1738236556660,0.62078,3222.3,3222.2,0.62077]
[1738236558155,3.6361,3222.4,3222.3,0.62076]
[1738236558156,3.72074,3222.4,3222.3,0.62076]
[1738236558458,0.6208,3222.2,3222.1,1.89291359]
[1738236558759,0.6208,3222.2,3222.1,0.62079]
[1738236559859,0.62082,3222.1,3222.0,0.62081]
[1738236560049,1.11692,3222.1,3222.0,0.62081]
[1738236562360,1.1169,3222.1,3222.0,0.62081]
[1738236562665,0.6208,3222.1,3222.0,0.62081]
[1738236564050,3.6349,3222.4,3221.9,4.98782359]
[1738236564253,0.62079,3222.2,3222.1,1.89288359]
[1738236567864,0.62079,3222.2,3222.1,0.62076]
[1738236572163,0.62082,3222.1,3222.0,0.62081]
[1738236572365,0.62082,3222.1,3221.9,3.2078]
[1738236572366,0.62082,3222.0,3221.9,3.2078]
[1738236574761,1.79342359,3222.1,3221.9,3.2078]
[1738236582170,4.47992359,3222.0,3221.1,1.27212359]
[1738236582464,1.27212359,3221.4,3221.1,1.27212359]
[1738236582771,0.5349,3222.4,3221.0,3.44855663]
[1738236582772,3.2078,3222.8,3221.3,1.27212359]
[1738236583070,0.51455376,3222.7,3222.4,1.27212359]
[1738236583569,0.51455376,3222.7,3222.5,0.5235]
[1738236585273,0.51455376,3222.7,3222.6,1.27212359]
[1738236586771,0.51455376,3222.7,3222.5,0.5235]
[1738236590774,0.51455376,3222.7,3222.6,3.8285]
[1738236590775,0.00465376,3222.7,3222.6,3.8285]
[1738236591674,1.55137,3223.5,3222.6,3.8285]
[1738236591675,0.62052,3223.6,3223.5,0.62053]
[1738236591873,0.62051,3223.6,3223.5,2.6868567]
[1738236592172,3.1,3223.6,3223.3,3.2078]
[1738236592369,0.62055,3223.4,3223.3,3.2078]
[1738236593771,3.1,3223.6,3223.1,0.6206]
[1738236593974,0.62059,3223.2,3223.1,0.6206]
[1738236594869,1.12398,3223.3,3223.2,0.62059]
[1738236595576,0.62055,3223.5,3223.4,0.62054]
[1738236596474,0.62055,3223.5,3223.2,2.6868567]
[1738236596776,0.62055,3223.4,3223.3,0.62056]
[1738236600267,0.62057,3223.3,3223.2,2.6868567]
[1738236600473,0.62059,3223.2,3223.1,0.6206]
[1738236601480,0.62061,3223.2,3223.1,0.6206]
[1738236603873,0.62061,3223.1,3223.0,0.00465376]
[1738236604075,2.18951,3223.1,3223.0,0.00465376]
[1738236607379,0.6208,3222.2,3222.1,0.62079]
[1738236607793,1.55179,3222.6,3222.0,6.69683569]
[1738236608084,0.62075,3222.4,3222.3,0.62074]
[1738236611993,0.62075,3222.4,3222.3,3.3075967]
[1738236612394,0.62075,3222.4,3222.3,2.6868567]
[1738236612588,0.62076,3222.3,3222.2,0.62077]
[1738236612890,1.16046,3222.3,3222.2,0.62077]
[1738236614794,1.16046,3222.3,3222.0,6.69683569]
[1738236614991,1.1394,3222.2,3222.1,0.62079]
[1738236615592,0.5186,3222.2,3222.0,6.69683569]
[1738236615795,0.6208,3222.1,3222.0,7.31763569]
[1738236618008,0.6208,3222.1,3222.0,3.48903569]
[1738236618204,0.5186,3222.2,3221.8,1.0359]
[1738236618205,0.62084,3221.9,3221.8,0.62085]
[1738236618906,0.5252,3222.0,3221.7,2.6868567]
[1738236619103,1.14603,3222.0,3221.9,0.62084]
[1738236619305,3.2078,3222.4,3221.7,2.6868567]
[1738236619507,3.82855,3222.4,3222.3,0.62076]
[1738236620011,3.0967,3222.8,3222.5,0.62069]
[1738236620012,0.62073,3222.6,3222.5,0.62069]
[1738236620205,4.7528,3222.8,3222.3,0.5127]
[1738236620410,0.62062,3223.1,3223.0,0.62061]
[1738236620611,1.12202,3223.2,3223.1,0.62061]
[1738236621002,0.62063,3223.1,3223.0,0.62061]
[1738236621705,0.5014,3223.2,3222.9,2.6868567]
[1738236621911,0.62065,3222.9,3222.8,3.2078]
[1738236622512,0.62065,3222.9,3222.8,3.82847]
[1738236623912,0.62061,3223.1,3223.0,0.62061]
[1738236624507,0.62065,3223.0,3222.9,0.62063]
[1738236626914,0.62065,3222.9,3222.8,3.2078]
[1738236627211,1.12665,3222.9,3222.8,3.2078]
[1738236628714,1.12665,3222.9,3222.8,3.82847]
[1738236630317,1.12665,3222.9,3222.8,0.62067]
[1738236630615,0.62068,3222.8,3222.7,0.62067]
[1738236631115,0.506,3222.9,3222.6,3.2078]
[1738236631313,1.65698,3222.7,3222.6,3.2078]
[1738236633922,1.12666,3222.9,3222.6,5.8946567]
[1738236634116,1.12666,3222.9,3222.8,0.62067]
[1738236634816,0.62068,3222.7,3222.6,6.5153367]
[1738236636018,0.62068,3222.7,3222.6,3.82848]
[1738236637710,0.62068,3222.7,3222.6,0.62068]
[1738236639620,0.506,3222.9,3222.5,0.5265]
[1738236639820,0.62068,3222.8,3222.7,0.62067]
[1738236642216,0.5406,3223.0,3222.7,3.2078]
[1738236642419,0.5406,3223.0,3222.9,0.62065]
[1738236642420,1.16123,3223.0,3222.9,0.62065]
[1738236642613,0.5406,3223.0,3222.9,0.62065]
[1738236642813,1.16123,3223.0,3222.9,0.62065]
[1738236644119,0.62067,3222.8,3222.7,3.82847]
[1738236645315,0.62065,3222.9,3222.8,0.62065]
[1738236647022,1.16124,3223.0,3222.9,0.62065]
[1738236647819,0.62067,3222.8,3222.7,3.2078]
[1738236648015,0.62067,3222.8,3222.7,3.82847]
[1738236649023,0.5406,3223.0,3222.7,3.2078]
[1738236649324,1.16124,3223.0,3222.9,0.62065]
[1738236651029,0.5406,3223.0,3222.9,0.62065]
[1738236651230,0.62061,3223.1,3223.0,0.62063]
[1738236652023,0.62061,3223.1,3223.0,1.11633]
[1738236653023,0.4949,3223.2,3223.0,0.4957]
[1738236653222,1.1155,3223.2,3223.1,0.62061]
[1738236656024,1.1155,3223.2,3222.7,4.75951]
[1738236656025,0.62067,3222.8,3222.7,3.2078]
[1738236656332,0.62066,3222.9,3222.8,0.62065]
[1738236658832,0.62066,3222.9,3222.8,1.14575]
[1738236659727,0.62066,3222.9,3222.8,0.5251]
[1738236659930,0.62067,3222.8,3222.7,3.2078]
[1738236660130,1.63177,3222.8,3222.7,3.2078]
[1738236662326,0.62076,3222.3,3222.2,3.82857]
[1738236672044,0.62076,3222.5,3222.4,0.62072]
[1738236673141,0.62072,3222.7,3222.6,0.62068]
[1738236673340,0.62074,3222.5,3222.4,0.62071]
[1738236674137,0.62074,3222.4,3222.3,3.3076067]
[1738236677542,3.72074,3222.4,3222.3,3.3076067]
[1738236678940,3.1,3222.4,3222.3,3.3076067]
[1738236679140,0.5066,3222.5,3222.4,0.62074]
[1738236679344,0.62072,3222.7,3222.6,0.62069]
[1738236679849,0.4999,3223.1,3222.6,2.6868567]
[1738236680142,1.0308,3223.2,3222.9,2.6868567]
[1738236680348,3.1,3223.2,3223.1,0.62061]
[1738236680641,3.72059,3223.2,3223.1,0.62061]
[1738236681037,3.1,3223.2,3223.1,0.62061]
[1738236682744,3.72059,3223.2,3223.1,0.62061]
[1738236685145,3.1,3223.2,3223.1,0.62061]
[1738236685348,3.72059,3223.2,3223.1,0.62061]
[1738236688146,3.82838,3223.3,3223.2,0.62059]
[1738236688351,0.5383,3223.6,3223.5,0.62053]
[1738236688655,1.15881,3223.6,3223.5,0.62053]
[1738236688944,0.5383,3223.6,3223.5,0.62053]
[1738236689258,3.83295376,3223.7,3223.6,0.62051]
[1738236690144,3.21245376,3223.7,3223.6,0.62051]
[1738236690349,3.83294376,3223.7,3223.6,0.62051]
[1738236692170,3.21245376,3223.7,3223.6,0.62051]
[1738236692557,3.83294376,3223.7,3223.6,1.15861]
[1738236693149,0.00465376,3223.7,3223.6,1.15861]
[1738236695750,0.62514376,3223.7,3223.6,1.15861]
[1738236698659,0.62514376,3223.7,3223.6,0.62051]
[1738236699956,0.00465376,3223.7,3223.6,0.62051]
[1738236700457,0.62514376,3223.7,3223.6,0.62051]
[1738236706966,0.62053,3223.6,3223.5,0.62052]
[1738236707160,1.68503,3223.6,3223.5,0.62052]
[1738236707364,1.0645,3223.6,3223.5,0.62052]
[1738236707561,1.68501,3223.6,3223.5,0.62052]
[1738236710171,0.62057,3223.5,3223.4,0.62054]
[1738236710365,0.62057,3223.4,3223.3,0.62056]
[1738236710566,1.16347,3223.4,3223.3,0.62056]
[1738236720564,0.5429,3223.4,3223.3,0.62056]
[1738236720769,0.62516376,3223.7,3223.6,0.62051]
[1738236722783,0.00465376,3223.7,3223.6,0.62051]
[1738236722972,0.62514376,3223.7,3223.6,0.62051]
[1738236724376,0.00465376,3223.7,3223.6,0.62051]
[1738236725378,0.00465376,3223.7,3223.6,1.13541]
[1738236725974,1.15756,3224.4,3223.6,0.7553724]
[1738236726180,0.62035,3224.5,3224.4,0.62034]
[1738236726370,1.15754,3224.5,3224.4,0.62034]
[1738236727277,4.25754,3224.5,3224.4,0.62034]
[1738236727990,3.6372,3224.5,3224.4,0.62034]
[1738236728184,4.25754,3224.5,3224.4,0.62034]
[1738236728587,3.6372,3224.5,3224.4,0.62034]
[1738236729291,4.25754,3224.5,3224.4,0.62034]
[1738236729684,3.6372,3224.5,3224.2,0.5115]
[1738236729890,0.6204,3224.3,3224.2,0.62039]
[1738236730979,1.15267,3224.4,3224.3,0.62038]
[1738236732695,0.6204,3224.2,3224.1,0.00465376]
[1738236737599,3.8282,3224.2,3224.1,0.00465376]
[1738236738690,0.62049,3223.7,3223.6,3.2078]
[1738236740885,0.62049,3223.7,3223.4,0.62055]
[1738236740886,0.62053,3223.5,3223.4,0.62055]
[1738236741287,0.62058,3223.4,3223.3,0.62056]
[1738236749000,1.13594,3223.5,3223.4,0.62055]
[1738236749498,1.13594,3223.5,3223.2,4.2383267]
[1738236749499,3.2078,3223.8,3223.2,2.6868567]
[1738236749806,1.55108,3224.1,3223.5,7.4459867]
[1738236749807,0.62047,3223.9,3223.5,7.4459867]
[1738236750105,0.62042,3224.1,3224.0,0.62043]
[1738236750600,1.16301,3224.2,3224.1,0.62042]
[1738236753297,0.5193,3224.4,3223.9,3.2078]
[1738236753496,0.62036,3224.4,3224.3,0.62036]
[1738236753897,3.72036,3224.5,3224.4,0.62036]
[1738236756097,3.1,3224.5,3223.9,3.2078]
[1738236756303,0.62043,3224.1,3224.0,0.62042]
[1738236757100,3.1,3224.5,3223.9,3.7369]
[1738236757304,0.62042,3224.2,3224.1,0.62039]
[1738236757509,0.62041,3224.2,3224.1,0.62039]
[1738236758601,4.65088,3224.5,3223.9,3.7369]
[1738236758804,1.11413,3224.1,3224.0,0.62043]
[1738236759907,4.65088,3224.5,3223.9,3.7369]
[1738236760100,0.62041,3224.2,3224.1,0.62038]
[1738236761805,0.5252,3224.4,3223.9,3.7369]
[1738236762101,0.62036,3224.4,3224.3,0.62038]
[1738236765109,3.6197,3224.6,3224.3,3.2078]
[1738236765307,4.24003,3224.6,3224.5,0.62034]
[1738236766707,0.62034,3224.5,3224.4,1.11214]
[1738236768607,0.62034,3224.5,3224.4,0.62034]
[1738236769514,0.62036,3224.4,3224.3,3.82816]
[1738236776720,0.62036,3224.4,3224.3,3.2078]
[1738236776922,0.62036,3224.4,3224.3,3.82818]
[1738236778819,0.62036,3224.4,3224.3,3.2078]
[1738236779022,0.62049,3223.8,3223.7,0.62048]
[1738236780423,1.5962,3224.0,3223.6,3.2078]
[1738236780619,3.2078,3223.7,3223.2,3.2078]
[1738236780819,0.62057,3223.3,3223.2,3.2078]
[1738236781215,0.62061,3223.1,3223.0,0.62061]
[1738236781423,3.72061,3223.1,3223.0,0.62061]
[1738236783125,3.1,3223.1,3223.0,0.62061]
[1738236783324,0.62058,3223.3,3223.2,0.62059]
[1738236783518,0.62058,3223.3,3223.2,3.3074467]
[1738236783826,3.72058,3223.3,3223.2,3.3074467]
[1738236784221,3.72058,3223.3,3223.2,2.6868567]
[1738236784619,0.62063,3223.0,3222.9,2.6868567]
[1738236785224,0.62063,3223.0,3222.9,3.3075067]
[1738236788328,0.62063,3223.0,3222.9,2.6868567]
[1738236788525,3.2078,3223.3,3222.8,3.82845]
[1738236788721,1.67415,3222.9,3222.8,3.2078]
[1738236789225,0.5145,3222.9,3222.8,3.82847]
[1738236790824,1.13515,3222.9,3222.8,3.82847]
[1738236791331,0.5145,3222.9,3222.8,3.82847]
[1738236792427,1.13515,3222.9,3222.8,3.82847]
[1738236792929,1.13515,3222.9,3222.8,3.2078]
[1738236794123,1.13515,3222.9,3222.8,3.82847]
[1738236795821,1.13515,3222.9,3222.8,0.62067]
[1738236799333,0.62069,3222.8,3222.7,0.62067]
[1738236799531,1.16359,3222.8,3222.7,0.62067]
[1738236808839,1.13516,3222.9,3222.8,0.62067]
[1738236810633,1.13516,3222.9,3222.8,1.89230656]
[1738236813342,4.99393656,3222.9,3222.4,1.78993656]
[1738236813540,4.34295,3222.9,3222.8,1.89230656]
[1738236816245,3.7223,3222.9,3222.8,1.89230656]
[1738236816646,4.34295,3222.9,3222.8,1.89230656]
[1738236816847,3.7223,3222.9,3222.8,1.89230656]
[1738236817446,4.34295,3222.9,3222.8,1.89230656]
[1738236820247,0.00465376,3223.2,3223.1,0.62061]
[1738236820454,1.5335,3223.7,3223.1,3.2078]
[1738236820753,15.61463656,3225.0,3223.9,0.62045]
[1738236820754,0.62045,3224.0,3223.9,0.62045]
[1738236820947,0.62045,3224.0,3223.9,1.89208656]
[1738236822650,0.62045,3224.0,3223.9,0.62045]
[1738236823055,3.1,3224.1,3224.0,0.62043]
[1738236823447,3.72042,3224.1,3224.0,0.62043]
[1738236823646,3.1,3224.1,3224.0,0.62043]
[1738236824150,3.72042,3224.1,3224.0,0.62043]
[1738236824353,3.72042,3224.1,3223.7,3.09921]
[1738236824354,3.1,3224.1,3223.7,1.548]
[1738236824849,0.62047,3223.9,3223.8,0.62047]
[1738236826453,0.62049,3223.7,3223.6,0.62515376]
[1738236827160,0.62049,3223.7,3223.6,0.00465376]
[1738236835665,3.82829,3223.7,3223.6,0.00465376]
[1738236838267,3.82829,3223.7,3223.0,0.62063]
[1738236838268,0.62061,3223.1,3223.0,0.62063]
[1738236840571,3.2078,3223.3,3223.2,0.62059]
[1738236841572,0.62052,3223.6,3223.0,3.18102789]
[1738236841866,0.62052,3223.6,3223.5,0.62053]
[1738236842373,0.62052,3223.6,3223.1,1.55149]
[1738236842374,3.82828,3223.8,3223.7,0.62049]
[1738236842965,3.2078,3223.8,3223.7,1.63279]
[1738236843869,3.82827,3223.8,3223.7,1.63279]
[1738236845374,3.2078,3223.8,3223.7,1.63279]
[1738236845567,0.62044,3224.0,3223.9,0.62043]
[1738236846272,3.72043,3224.1,3224.0,0.62043]
[1738236846772,3.1,3224.1,3224.0,0.62043]
[1738236847565,3.2078,3224.2,3224.0,0.62043]
[1738236847867,0.62042,3224.1,3224.0,0.62043]
[1738236848269,6.3078,3224.2,3223.9,2.68472789]